Cogmind - Beta 17.1 @@@ ROGUE MODE // 2026.09.02 @ 02:33:37 Player: TheSkyeDoctor Result: Destroyed by G-47 Trooper with Particle Gun Performance ------------- Evolutions (2) 1000 Regions Visited (5) 1000 Robots Destroyed (18) 90 Value Destroyed (516) 516 Prototype IDs (25) 500 Alien Tech Used (0) 0 Bonus (405) 405 TOTAL SCORE: 3511 Bonus ------- Follower Combat Kills 105 Aligned with FarCom 300 Cogmind --------- Core Integrity 0/550 Matter 290/300 Energy 25/100 System Corruption 0% Temperature Cool (9) Movement Walking (120) Location -8/Materials Parts ------- > --- POWER (1) -------- (None) > --- PROPULSION (2) --- Aluminum Leg Improved Aluminum Leg > --- UTILITY (6) ------ Modified TNC 0b10 Alert Chip > --- WEAPON (2) ------- Heavy Flail > --- INVENTORY (5) ---- Experimental Sensor Array Improved Terrain Scanner Heavy Particle Cannon Improved Datajack Plasma Cutter Peak State ------------ > --- POWER ------------ Light Nuclear Core > --- PROPULSION ------- Light Treads Advanced Treads > --- UTILITY ---------- High-capacity Storage Unit Seismic Detector Modified TNC 0b10 Alert Chip High-powered Tractor Beam Sensor Drone Bay > --- WEAPON ----------- Heavy Particle Cannon Minigun > --- INVENTORY -------- High-capacity Matter Pod High-capacity Matter Pod Experimental Sensor Array Improved Terrain Scanner Minigun Minigun XL Autogun Array Improved Datajack Plasma Cutter Heavy Flail [Rating: 44] Favorites ----------- Power Ion Engine Engine Ion Engine Power Core Light Nuclear Core Propulsion Light Treads Treads Light Treads Leg Improved Aluminum Leg Wheel Wheel Utility Seismic Detector Device Seismic Detector Storage Small Storage Unit Processor 0b10 Alert Chip Weapon Particle Gun Energy Gun Particle Gun Energy Cannon Heavy Particle Cannon Ballistic Gun Minigun Impact Weapon Heavy Flail Build | -11 -10 -10 -10 -9 -8 ------- Run | Yrd Mat Min Exi Min Mat Slots Evolved 4 | . . . . . 4 Power . | . . . . . . Propulsion . | . . . . . . Utility 4 | . . . . . 4 Weapon . | . . . . . . Parts Attached 29 | 7 4 2 1 . 15 Power 4 | 2 . 1 . . 1 Engine 3 | 2 . 1 . . . Core 1 | . . . . . 1 Reactor . | . . . . . . Propulsion 7 | 2 2 . . . 3 Treads 4 | 2 1 . . . 1 Leg 2 | . . . . . 2 Wheel 1 | . 1 . . . . Hover . | . . . . . . Flight . | . . . . . . Utility 9 | 1 2 . 1 . 5 Device 5 | 1 1 . . . 3 Storage 2 | . 1 . 1 . . Processor 2 | . . . . . 2 Hackware . | . . . . . . Protection . | . . . . . . Artifact . | . . . . . . Weapon 9 | 2 . 1 . . 6 Energy Gun 3 | 2 . 1 . . . Energy Cannon 1 | . . . . . 1 Ballistic Gun 4 | . . . . . 4 Ballistic Cannon . | . . . . . . Launcher . | . . . . . . Special Weapon . | . . . . . . Impact Weapon 1 | . . . . . 1 Slashing Weapon . | . . . . . . Piercing Weapon . | . . . . . . Special Melee Weapon . | . . . . . . Unidentified Prototypes 2 | . . . . . 2 Parts Lost 15 | . 5 . . . 10 Power 2 | . 1 . . . 1 Propulsion 5 | . 2 . . . 3 Utility 3 | . . . . . 3 Weapon 5 | . 2 . . . 3 Highest Loss Streak 9 | . 5 . . . 9 To Critical Strikes . | . . . . . . Average Backups 4 | 2 2 1 4 7 7 Power . | . . . . . . Propulsion . | . . . . . . Utility 3 | . 1 1 3 6 4 Weapon . | . . . . 1 2 Tool/Special . | . . . . . . Unused Backups 6 | . . . . . 6 Power . | . . . . . . Propulsion . | . . . . . . Utility 3 | . . . . . 3 Weapon 1 | . . . . . 1 Tool/Special 2 | . . . . . 2 Average Slot Usage (%) 82 | . 77 71 85 85 86 Engine 10 | . 8 7 14 14 7 Treads 14 | . 18 14 14 14 11 Wheel 10 | . 5 14 14 14 4 Device 15 | . 14 14 14 14 20 Storage 12 | . 12 14 14 14 8 Processor 4 | . . . . . 17 Energy Gun 10 | . 17 6 14 14 2 Energy Cannon 1 | . . . . . 5 Ballistic Gun 1 | . . . . . 6 Peak Build Rating 44 | 6 9 8 13 14 44 Average Rating 14 | 4 5 6 11 13 36 On Entrance 7 | . 6 4 8 13 14 Avg Prop Armor Cover (%) 15 | . 23 20 15 15 10 Naked Turns . | . . . . . . Heaviest Build 70 | 9 14 14 49 49 70 Greatest Support 42 | 40 40 10 10 10 42 Greatest Overweight (x) 6 | . 2 1 4 4 6 Average Overweight (x) 1 | . . . 1 4 3 Largest Inventory Capacity 20 | 5 8 8 20 20 20 Average Capacity 12 | 5 7 8 11 20 19 Most Carried 14 | 4 4 2 10 11 14 Average Carried 6 | 2 2 1 6 10 10 Final Capacity 20 | 5 8 8 20 20 5 Final Carried 11 | 4 1 2 10 11 5 Class Distribution -------------------- 84% | Mutant 15% | Skirmisher Dominant Class ---------------- Mutant | -10/Materials Mutant | -10/Mines Mutant | -10/Exiles Mutant | -9/Mines Skirmisher | -8/Materials Resources | -11 -10 -10 -10 -9 -8 ----------- Run | Yrd Mat Min Exi Min Mat Matter Collected 585 | 270 30 35 30 . 220 Remotely 177 | . . . . . 177 Salvage Created 638 | 152 99 23 . . 364 Parts 30 | 11 3 . . . 16 Haulers Intercepted . | . . . . . . Recyclers Shooed 1 | . . . . . 1 Parts Field Recycled . | . . . . . . Retrieved Matter . | . . . . . . Parts Self-Destructed . | . . . . . . Prevented . | . . . . . . Parts Restored . | . . . . . . Kills | -11 -10 -10 -10 -9 -8 ------- Run | Yrd Mat Min Exi Min Mat Combat Hostiles Destroyed 11 | . 3 1 . . 7 Melee 3 | . 1 . . . 2 Guns 5 | . 2 . . . 3 Cannons 2 | . . . . . 2 Classes Destroyed 6 | 3 1 . . . 2 Worker 3 | 1 . . . . 2 Tunneler 3 | 3 . . . . . Recycler 1 | 1 . . . . . Grunt 9 | . 3 1 . . 5 Duelist 1 | . . . . . 1 Sentry 1 | . . . . . 1 Best Kill Streak 9 | 2 2 1 . . 9 Combat Bots Only 7 | . 2 1 . . 7 Max Kills in Single Turn 2 | 1 1 1 . . 2 Gunslinging . | . . . . . . Exploded . | . . . . . . Melee 1 | . 1 . . . 1 Uniques/NPCs Destroyed . | . . . . . . Combat | -11 -10 -10 -10 -9 -8 -------- Run | Yrd Mat Min Exi Min Mat Hostile Shots Fired 214 | . 65 8 . . 141 Missed 39 | . 12 1 . . 26 Hits 175 | . 53 7 . . 115 Melee 1 | . . . . . 1 Projectile 174 | . 53 7 . . 114 Critical Strikes 10 | . 1 . . . 9 Damage Taken 2651 | . 677 79 . . 1895 Core 652 | . 86 12 . . 554 Absorbed by Shields . | . . . . . . Core Remaining (%) 80 | 100 . . . 60 . Volleys Fired 48 | 9 15 8 . . 16 Largest 2 | 2 2 1 . . 2 Hottest 100 | 90 90 65 . . 100 Shots Fired 84 | 18 27 8 . . 31 Gun 73 | 18 27 8 . . 20 Cannon 11 | . . . . . 11 Launcher . | . . . . . . Special . | . . . . . . Kinetic 20 | . . . . . 20 Thermal 64 | 18 27 8 . . 11 Explosive . | . . . . . . Electromagnetic . | . . . . . . Robot Hit Streak 10 | 5 4 7 . . 10 Robot Miss Streak 2 | 1 2 1 . . 1 Penetration Max . | . . . . . . Secondary Targets 1 | . 1 . . . . Max Gunslinging Chain 1 | . 1 . . . . Shots Hit Robots 66 | 13 19 7 . . 27 Core Hits 27 | 6 7 . . . 14 Critical Kills 1 | . . . . . 1 Critical Parts Destroyed . | . . . . . . Critical Strikes 2 | 1 . . . . 1 Burn 1 | 1 . . . . . Smash 1 | . . . . . 1 Melee Attacks 5 | . . . . . 5 Impact 5 | . . . . . 5 Slashing . | . . . . . . Piercing . | . . . . . . Sneak Attacks . | . . . . . . Combat Hostiles . | . . . . . . Follow-up Attacks . | . . . . . . Damage Inflicted 1246 | 155 230 101 . . 760 Guns 767 | 155 228 101 . . 283 Cannons 275 | . . . . . 275 Explosions . | . . . . . . Melee 202 | . . . . . 202 Ramming 2 | . 2 . . . . Kinetic 283 | . . . . . 283 Thermal 759 | 155 228 101 . . 275 Explosive . | . . . . . . Electromagnetic . | . . . . . . Impact 202 | . . . . . 202 Slashing . | . . . . . . Piercing . | . . . . . . Highest Corruption . | . . . . . . Average Corruption . | . . . . . . Corruption Purged . | . . . . . . Corruption Blocked . | . . . . . . Overload Shots . | . . . . . . Overflow Damage 7 | . . . . . 7 Projectiles . | . . . . . . Explosions . | . . . . . . Melee 7 | . . . . . 7 Knockbacks . | . . . . . . Impact . | . . . . . . Kinetic . | . . . . . . Secondary . | . . . . . . Self-Inflicted Damage . | . . . . . . Shots . | . . . . . . Rammed 1 | . 1 . . . . Targets Rammed 2 | . 2 . . . . Kicked . | . . . . . . Crushed 1 | . 1 . . . . Highest Temperature 371 | 150 345 228 . . 371 Average Temperature 142 | 57 198 118 . . 137 Received Heat Transfer 1629 | . 405 42 . . 1182 Effects 6 | . 5 . . . 1 Shutdowns 1 | . . . . . 1 Interference 4 | . 4 . . . . Short Circuit 1 | . 1 . . . . Siege Activations . | . . . . . . Martial Activations . | . . . . . . Shielding Activations . | . . . . . . Robots Disrupted . | . . . . . . Combat Hostiles . | . . . . . . Robots Corrupted . | . . . . . . Combat Hostiles . | . . . . . . Parts Fried . | . . . . . . Impact Corruptions 1 | . . . . . 1 Robots Melted 1 | . . 1 . . . Combat Hostiles 1 | . . 1 . . . Parts Melted 6 | 4 1 1 . . . Heat Transferred 1756 | 483 607 259 . . 407 Parts Sabotaged . | . . . . . . Parts Stolen . | . . . . . . Parts Stripped . | . . . . . . Power Chain Reactions . | . . . . . . Alert | -11 -10 -10 -10 -9 -8 ------- Run | Yrd Mat Min Exi Min Mat Maximum Alert Level . | . . . . . . Low Security (%) 100 | 100 100 100 . 100 100 Level 1 . | . . . . . . Level 2 . | . . . . . . Level 3 . | . . . . . . Level 4 . | . . . . . . Level 5 . | . . . . . . High Security . | . . . . . . Max Security . | . . . . . . Peak Influence 84 | 10 40 51 . . 84 Initial . | . . . . . . Average 9 | . 7 20 . . 12 Influence Increases 402 | 25 85 71 . . 221 Destroy 0b10 Robot/C 244 | . 60 40 . . 144 Destroy 0b10 Robot/NC 37 | 25 . . . . 12 Destroy Leader 54 | . 10 10 . . 34 Allied During Kill 16 | . . 6 . . 10 Disable Machine 12 | . . . . . 12 Destroy Structure 9 | . . . . . 9 Lose Combat Pursuer 30 | . 15 15 . . . Influence Decreases 388 | 25 85 50 21 . 207 Entered New Map 21 | . . . 21 . . Time Decay 198 | 25 45 50 . . 78 Lost Part 140 | . 40 . . . 100 Lost Ally 29 | . . . . . 29 Squads Dispatched 3 | . . . . . 3 Investigation 1 | . . . . . 1 Extermination . | . . . . . . Reinforcement 2 | . . . . . 2 Assault . | . . . . . . Garrison . | . . . . . . Intercept . | . . . . . . Searches Triggered . | . . . . . . Construction Impeded . | . . . . . . Haulers Reinforced . | . . . . . . Active Scanning Responses . | . . . . . . Cargo Convoy Interrupts . | . . . . . . Stealth | -11 -10 -10 -10 -9 -8 --------- Run | Yrd Mat Min Exi Min Mat Distress Signals 3 | . 1 . . . 2 Communications Jammed . | . . . . . . Distress Signals . | . . . . . . Times Spotted 27 | . 8 3 . . 16 Peak Tracking Total 9 | . 5 2 . . 9 Tactical Retreats 2 | . 1 1 . . . Traps | -11 -10 -10 -10 -9 -8 ------- Run | Yrd Mat Min Exi Min Mat Traps Triggered . | . . . . . . Indirectly . | . . . . . . Trap Hack Attempts . | . . . . . . Triggered . | . . . . . . Disarmed . | . . . . . . Reprogrammed . | . . . . . . Reused . | . . . . . . Traps Extracted . | . . . . . . Installed . | . . . . . . Triggered . | . . . . . . Machines | -11 -10 -10 -10 -9 -8 ---------- Run | Yrd Mat Min Exi Min Mat Machines Disabled 1 | . . . . . 1 Max in Single Turn . | . . . . . . Machines Repaired . | . . . . . . Machines Dismantled . | . . . . . . Machines Sabotaged . | . . . . . . Overloaded Fab Kills . | . . . . . . Hacking | -11 -10 -10 -10 -9 -8 --------- Run | Yrd Mat Min Exi Min Mat Machines Accessed 3 | . 1 . 1 1 . Terminals 1 | . 1 . . . . Fabricators . | . . . . . . Repair Stations . | . . . . . . Recycling Units . | . . . . . . Scanalyzers . | . . . . . . Garrison Access . | . . . . . . Total Hacks 4 | . 2 . 1 1 . Successful 2 | . . . 1 1 . Failed 2 | . 2 . . . . Catastrophic 1 | . 1 . . . . Database Lockouts . | . . . . . . Manual 1 | . . . 1 . . Terminals 2 | . 2 . . . . Fabricators . | . . . . . . Repair Stations . | . . . . . . Recycling Units . | . . . . . . Scanalyzers . | . . . . . . Garrison Access . | . . . . . . Terminal Hacks 2 | . . . 1 1 . Open Door 1 | . . . . 1 . Proto ID Catalog 1 | . . . 1 . . Fabricator Hacks . | . . . . . . Repair Station Hacks . | . . . . . . Recycling Unit Hacks . | . . . . . . Scanalyzer . | . . . . . . Garrison Access Hacks . | . . . . . . Unauthorized Hacks . | . . . . . . Terminals . | . . . . . . Fabricators . | . . . . . . Repair Stations . | . . . . . . Recycling Units . | . . . . . . Scanalyzers . | . . . . . . Garrison Access . | . . . . . . Data Cores Recovered . | . . . . . . Used . | . . . . . . Hacking Detections 1 | . 1 . . . . Full Trace Events 1 | . 1 . . . . Feedback Events . | . . . . . . Feedback Blocked . | . . . . . . Robot Schematics Acquired . | . . . . . . Robots Built . | . . . . . . Authchips . | . . . . . . Time . | . . . . . . Total Robot Build Rating . | . . . . . . Part Schematics Acquired . | . . . . . . Parts Built . | . . . . . . Authchips . | . . . . . . Time . | . . . . . . Total Part Build Rating . | . . . . . . Part Studies Acquired . | . . . . . . Parts Repaired . | . . . . . . Time . | . . . . . . Parts Recycled . | . . . . . . Recycled Matter . | . . . . . . Retrieved Matter . | . . . . . . Retrieved Components . | . . . . . . Parts Scanalyzed . | . . . . . . Part Schematics Acquired . | . . . . . . Parts Damaged . | . . . . . . Bothacking | -11 -10 -10 -10 -9 -8 ------------ Run | Yrd Mat Min Exi Min Mat Used RIF Installer . | . . . . . . Robots Hacked . | . . . . . . Non-combat . | . . . . . . Combat . | . . . . . . Robot Hacks Applied . | . . . . . . Relay Couplers Released . | . . . . . . Fabnet Peak Effective % . | . . . . . . Robots Rewired . | . . . . . . Allies Hacked . | . . . . . . Hacks Repelled . | . . . . . . Allies | -11 -10 -10 -10 -9 -8 -------- Run | Yrd Mat Min Exi Min Mat Total Allies 5 | . . 2 . 3 . Largest Group 3 | . . 2 2 3 3 Highest-Rated Group 46 | . . 46 46 40 40 Highest-Rated Ally 31 | . . 31 31 16 16 Total Orders 1 | . . . . . 1 EXPLORE 1 | . . . . . 1 Ally Attacks 34 | . . 5 . . 29 Total Damage 540 | . . 106 . . 434 Kills 4 | . . 1 . . 3 Allies Corrupted . | . . . . . . Allies Melted . | . . . . . . Intel | -11 -10 -10 -10 -9 -8 ------- Run | Yrd Mat Min Exi Min Mat Active Infowar (turns) 1328 | 69 149 183 467 126 334 Terrain 1 | . 1 . . . . Seismic 1275 | 69 149 183 467 126 281 T.N.C. 333 | . . . . . 333 Robot Analysis Total . | . . . . . . Derelict Logs Recovered . | . . . . . . Drone Launches 20 | . . . . . 20 Drone Recoveries 17 | . . . . . 17 Exploration | -11 -10 -10 -10 -9 -8 ------------- Run | Yrd Mat Min Exi Min Mat Turns Passed 1480 | 161 209 183 467 126 334 Spaces Moved 985 | 80 136 145 435 83 106 Core 9 | 6 1 . . . 2 Treads 152 | 74 47 . . . 31 Legs 8 | . . . . . 8 Wheels 816 | . 88 145 435 83 65 Hover . | . . . . . . Flight . | . . . . . . Fastest Speed 50 | 50 80 80 95 140 50 Average Speed 117 | 151 108 84 105 140 181 Slowest Speed 232 | 160 160 95 140 140 232 Overloaded Moves . | . . . . . . Propulsion Burnouts . | . . . . . . Robots Hopped . | . . . . . . Potential Cave-ins . | . . . . . . Cave-ins Triggered . | . . . . . . Exploration Rate (%) 33 | 4 28 24 70 16 58 Regions Visited 5 Branch Regions 3 Pre-discovered Areas 1 | . . . . 1 . Known Exits Taken . | . . . . . . Unknown Exits Taken 5 | 1 1 1 1 1 . Scrap Searched 1 | . . 1 . . . Spaces Dug . | . . . . . . Terrain Destroyed . | . . . . . . Melee . | . . . . . . Projectile . | . . . . . . AOE . | . . . . . . Terrain Rammed . | . . . . . . Walls Destroyed . | . . . . . . Machines Disabled . | . . . . . . Actions | -11 -10 -10 -10 -9 -8 --------- Run | Yrd Mat Min Exi Min Mat Total 1211 | 98 169 195 441 93 215 Wait 110 | . 8 40 . 10 52 Move 980 | 79 135 144 434 82 106 Hop . | . . . . . . Pick Up 17 | 3 . 1 5 1 7 Fast Attach 16 | 6 1 2 . . 7 Attach 13 | . 4 . . . 9 Detach 7 | . 2 . . . 5 Swap 4 | 1 1 . 1 . 1 Drop 9 | . 1 . 1 . 7 Fire 48 | 9 15 8 . . 16 Melee 5 | . . . . . 5 Ram . | . . . . . . Kick . | . . . . . . Crush 2 | . 2 . . . . Escape Stasis . | . . . . . . Rewire . | . . . . . . Trap . | . . . . . . Miscellaneous . | . . . . . . Route ------- -11/Scrapyard -10/Materials (discovered 2 exits: [*Mat] / [*Min]) -10/Mines -10/Exiles -9/Mines -8/Materials History --------- Turn | Location | Event 31 | -11/Scrapyard | Discovered new exit (range 15) 162 | -11/Scrapyard | Entered Materials 312 | -10/Materials | Build established: Mutant 337 | -10/Materials | Discovered new exit (range 16) 341 | -10/Materials | Lost 5 parts (1p2n2w) 343 | -10/Materials | Discovered new exit (range 13) 371 | -10/Materials | Entered Mines 407 | -10/Mines | Found a damaged Exp. Sensor Array with a note attached 408 | -10/Mines | Found Prototype Device 516 | -10/Mines | Deemed a non-threat by the Exiles lab entrance 517 | -10/Mines | Discovered new exit (range 5) 554 | -10/Mines | Entered Exiles 554 | -10/Exiles | Accompanied by 2 allies 577 | -10/Exiles | Met 8R-AWN 584 | -10/Exiles | Led the pair of lost Derelicts to a safe place 593 | -10/Exiles | Met EX-HEX 625 | -10/Exiles | Met EX-BIN 648 | -10/Exiles | Aligned with FarCom system 649 | -10/Exiles | Given EX-Vault access code 672 | -10/Exiles | Opened EX-Vault 682 | -10/Exiles | Found 0b10 Alert Chip 689 | -10/Exiles | Found Modified TNC 695 | -10/Exiles | Found XL Autogun Array 714 | -10/Exiles | Warned to stay clear of 0b10 Research branches 747 | -10/Exiles | Met EX-DEC 1005 | -10/Exiles | Discovered new exit (range 14) 1021 | -10/Exiles | Stole three prototypes: Modified TNC, 0b10 Alert Chip, XL Autogun Array 1021 | -10/Exiles | Entered Mines 1022 | -9/Mines | Learned location of Storage (-7) 1065 | -9/Mines | Assisted by bots powering up and referring to "LRC-V3" 1101 | -9/Mines | Discovered new exit (range 15) 1126 | -9/Mines | Found the Drone Emporium 1132 | -9/Mines | Found Prototype Device 1147 | -9/Mines | Entered Materials 1147 | -8/Materials | Accompanied by 3 allies 1147 | -8/Materials | Evolved 4 slots: Utility x4 1149 | -8/Materials | Identified Sensor Drone Bay 1412 | -8/Materials | Lost 4 allies 1448 | -8/Materials | Core integrity fell below 50% 1466 | -8/Materials | Core integrity fell below 20% 1478 | -8/Materials | Destroyed 7 combat bots 1481 | -8/Materials | Destroyed by G-47 Trooper with Particle Gun Last Messages --------------- 01463_ Dropped Hcp. Matter Pod. 01464_ Imp. Heat Sink destroyed. 01464_ Dropped Hcp. Matter Pod. 01464_ Dropped Sensor Drone Bay. 01464_ K-01 Serf collects debris. 01465_ Dropped XL Autogun Array. 01465_ Dropped Hcp. Storage Unit. 01466_ Acquired 33 matter. 01467_ R-06 Scavenger collects Hcp. Storage Unit. 01467_ K-01 Serf collects debris. 01469_ Acquired Imp. Aluminum Leg. 01470_ R-06 Scavenger collects Sensor Drone Bay. 01470_ Acquired 10 matter. 01472_ K-01 Serf collects debris. 01473_ R-06 Scavenger collects Wheel. 01475_ K-01 Serf destroyed. 01477_ Critical hit (Burn: +37). 01477_ R-06 Scavenger collects Aluminum Leg. 01480_ Acquired Aluminum Leg. Map ----- +----------------------------------------------------+ | ?????# #????????# ! #??# | | ?????# #????????# !! a #??# | | ????# #????????# !! #??# | | ??# ###??????# %###"### !! #??# | | ! # ############ ## ######"T"########??# | | + ## #????#####?????????# | | # ############ ## #????????########### | | ??# #??????????# ##!! #???????##! ^ | | ????# #??????????# ##! #???????#! ^ | | ?????# #??????????# ##! #???????#! ^ | | ?????# ########???# ## #???????#! ## ^ | | ?????# #???# ## ] #???????#! ## | | ?????# #???# ## #???????##! ## | | ?????# #???# #######????????##### | | ?????########g #???#h#??????????????????# | | ????????????# #???# #??????????????????# ### | | ????????????# #???# #??????????????????# #?# | | ?#"T"######## #??## ##?????????????????# #?# | | = #??# #?????????????????# #?# | | #??# ####??????????????# ### | | """ """ """ #??# # #??????????????# ## [ | | ??"" """ "T" #??# #??????????????# ## | | ??"" """ " " ##?# ####???????########+## ## | | T#?# #??????????# ## ### | | a#### ########???# ## #?# | | * #*@*g!/#???# ## #?# | | % % #=%gg=[#???# ## #?# | | ? #r !"" #???# ## #?# | | ?#############+#### r%[""" #???# ## #?# | | ??????????????????# %# g""" #???# ## ###/ | | ??????????????????# #/! g #???# ## / | | ??????????????????# ########???# ## # | | ??????????????????# ###############+##### # | | ??????????????????# a % # | | ??????????????????# w ! + | | ??????????????????# // %= # | | ??????????????????# // [ ###### #* | | ??????????????????## // #????# #* | | ???????????????????# #????# #* | | ???????????????????# "" ######+## | | ???????????????????+ [[ Y" # #? | | ???????????????????# "" # #? | | ???????????????????# # """ #? | | ???????????????????# + """ #? | | ???????????????????##+###""""##"""#### # """ #? | | ??????????????????? # # # #! #? | | ??????????????????""" ### # ########? | | ???????????????????R" #?# ! # #???? | | ??????????????????" " #?# + #???? | | ?????????????????? """ #?# # #???? | +----------------------------------------------------+ Best States ------------- Heat Dissipation 45 Energy Generation 14 Energy Capacity 250 Matter Stores 300 Matter Capacity 300 Sight Range 16 Terrain Scan Density 10 Evasion (%) 50 Recoil Reduction 2 Item Schematics ----------------- None Robot Schematics ------------------ None Fabricated ------------ Nothing Repaired ---------- Nothing Studied --------- None Alien Tech Used ----------------- None Achievements -------------- None Challenges ------------ None Game ------ Seed DeliveryBlinkWheel Manual? 0 Play Time 00:11:49 Cumulative 188.5 hours Start 2026.09.02 @ 02:23:22 End 2026.09.02 @ 02:33:37 Sessions 1 Manual Loads 0 Difficulty Rogue Special Mode None Game No. 375 Rogue 375 Adventurer 0 Explorer 0 Win Type - Total 2 Types 2/0/0/0/0/0/0/0/0/0 Lore% 59 Gallery% 60 Achievement% 47 Wizard Run 0 Options --------- Layout 2 ASCII 0 Keyboard 1 Movement Arrows Keybinds 0 Fullscreen 1 Font 24/Smallcaps Map View 50x44 Zoom Use 0% Tactical HUD 1 Map Filters NONE Filters NONE Steam 1 RUN: 59d8ff4f-313a-4bb3-8645-8bacbac7867c